Department Family,Entity,Date,Expense Type,Expense Area,Supplier,Transaction Number,AP Amount,VAT Registration Number,Purchase Invoice Number,
Department of Health,Bridgewater Community Healthcare NHS Foundation Trust,5/31/2020,Insurance Costs,Finance,GMP DRIVERCARE LTD,34229563,"33,012.00",884164303,3559,
Department of Health,Bridgewater Community Healthcare NHS Foundation Trust,5/31/2020,Computer Software/License,Computing,SPECIALIST COMPUTER CENTRES PLC,34229703,"29,959.70",313651680,OPM757267,
Department of Health,Bridgewater Community Healthcare NHS Foundation Trust,5/31/2020,Commercial Sector,Flu Campaign,HEALTHWORK LTD,34229723,"50,400.00",195508772,P0033261,
Department of Health,Bridgewater Community Healthcare NHS Foundation Trust,5/31/2020,Rent,Millennium Centre,NHS PROPERTY SERVICES LTD,34261047,"45,815.09",156725100,48408296,
Department of Health,Bridgewater Community Healthcare NHS Foundation Trust,5/31/2020,Rent,Lister Road,NHS PROPERTY SERVICES LTD,34261050,"33,700.28",156725100,48408426,
Department of Health,Bridgewater Community Healthcare NHS Foundation Trust,5/31/2020,Rent,Midwood House,NHS PROPERTY SERVICES LTD,34261051,"35,411.31",156725100,48408427,
Department of Health,Bridgewater Community Healthcare NHS Foundation Trust,5/31/2020,Rent,General Management,NHS PROPERTY SERVICES LTD,34261065,"49,638.58",156725100,48502670,
Department of Health,Bridgewater Community Healthcare NHS Foundation Trust,5/31/2020,Rent,Guardian St Medical Centre,NHS PROPERTY SERVICES LTD,34261071,"26,600.50",156725100,00000001H4288,
Department of Health,Bridgewater Community Healthcare NHS Foundation Trust,5/31/2020,Rent,Millennium Centre,NHS PROPERTY SERVICES LTD,34261097,"25,422.55",156725100,00000001H12904,
Department of Health,Bridgewater Community Healthcare NHS Foundation Trust,5/31/2020,Rent,Lister Road,NHS PROPERTY SERVICES LTD,34261098,"26,795.45",156725100,00000001H16046,
Department of Health,Bridgewater Community Healthcare NHS Foundation Trust,5/31/2020,Rent,Lister Road,NHS PROPERTY SERVICES LTD,34261100,"26,795.45",156725100,00000001H16047,
Department of Health,Bridgewater Community Healthcare NHS Foundation Trust,5/31/2020,Rent,Millennium Centre,NHS PROPERTY SERVICES LTD,34261106,"25,422.55",156725100,00000001H12905,
Department of Health,Bridgewater Community Healthcare NHS Foundation Trust,5/31/2020,Rent,Millennium Centre,NHS PROPERTY SERVICES LTD,34261112,"35,961.24",156725100,00000001H12906,
Department of Health,Bridgewater Community Healthcare NHS Foundation Trust,5/31/2020,Rent,Lister Road,NHS PROPERTY SERVICES LTD,34261126,"37,595.45",156725100,00000001H32383,
Department of Health,Bridgewater Community Healthcare NHS Foundation Trust,5/31/2020,Rent,Grappenhall Clinic,NHS PROPERTY SERVICES LTD,34261135,"32,037.07",156725100,00000001H29920,
Department of Health,Bridgewater Community Healthcare NHS Foundation Trust,5/31/2020,Rent,Millennium Centre,NHS PROPERTY SERVICES LTD,34261146,"25,422.55",156725100,00000001H36284,
Department of Health,Bridgewater Community Healthcare NHS Foundation Trust,5/31/2020,Rent,Oldham Estates,NHS PROPERTY SERVICES LTD,34261165,"38,459.32",156725100,H48369,
Department of Health,Bridgewater Community Healthcare NHS Foundation Trust,5/31/2020,Rent,Guardian St Medical Centre,NHS PROPERTY SERVICES LTD,34261181,"28,757.61",156725100,H49253,
Department of Health,Bridgewater Community Healthcare NHS Foundation Trust,5/31/2020,Rent,Fingerpost Health Park,NHS PROPERTY SERVICES LTD,34261189,"46,836.36",156725100,H50667,
Department of Health,Bridgewater Community Healthcare NHS Foundation Trust,5/31/2020,Rent,Millennium Centre,NHS PROPERTY SERVICES LTD,34261193,"48,849.84",156725100,H52554,
Department of Health,Bridgewater Community Healthcare NHS Foundation Trust,5/31/2020,Rent,Halton ILC,NHS PROPERTY SERVICES LTD,34261200,"25,733.17",156725100,H54218,
Department of Health,Bridgewater Community Healthcare NHS Foundation Trust,5/31/2020,Rent,General Management,NHS PROPERTY SERVICES LTD,34261203,"36,939.66",156725100,H56449,
Department of Health,Bridgewater Community Healthcare NHS Foundation Trust,5/31/2020,Rent,Lister Road,NHS PROPERTY SERVICES LTD,34261208,"45,993.26",156725100,H61440,
Department of Health,Bridgewater Community Healthcare NHS Foundation Trust,5/31/2020,Rent,Bridges Learning Centre,NHS PROPERTY SERVICES LTD,34261209,"38,127.77",156725100,H61444,
Department of Health,Bridgewater Community Healthcare NHS Foundation Trust,5/31/2020,Rent,Bridges Learning Centre,NHS PROPERTY SERVICES LTD,34261220,"29,523.40",156725100,H73013,
Department of Health,Bridgewater Community Healthcare NHS Foundation Trust,5/31/2020,Rent,Lister Road,NHS PROPERTY SERVICES LTD,34261221,"45,993.26",156725100,H73011,
Department of Health,Bridgewater Community Healthcare NHS Foundation Trust,5/31/2020,Rent,Millennium Centre,NHS PROPERTY SERVICES LTD,34261227,"34,263.90",156725100,H109135,
Department of Health,Bridgewater Community Healthcare NHS Foundation Trust,5/31/2020,Rent,Lister Road,NHS PROPERTY SERVICES LTD,34261231,"35,193.26",156725100,H114943,
Department of Health,Bridgewater Community Healthcare NHS Foundation Trust,5/31/2020,Rent,Penketh Health Centre,NHS PROPERTY SERVICES LTD,34261240,"34,566.93",156725100,H115325,
Department of Health,Bridgewater Community Healthcare NHS Foundation Trust,5/31/2020,Rent,Millennium Centre,NHS PROPERTY SERVICES LTD,34261243,"34,263.90",156725100,H160593,
Department of Health,Bridgewater Community Healthcare NHS Foundation Trust,5/31/2020,Rent,Dewar Court,NHS PROPERTY SERVICES LTD,34261244,"33,451.26",156725100,H160585,
Department of Health,Bridgewater Community Healthcare NHS Foundation Trust,5/31/2020,Rent,Lister Road,NHS PROPERTY SERVICES LTD,34261246,"35,193.26",156725100,H160721,
Department of Health,Bridgewater Community Healthcare NHS Foundation Trust,5/31/2020,Rent,Penketh Health Centre,NHS PROPERTY SERVICES LTD,34261250,"34,566.93",156725100,H161109,
Department of Health,Bridgewater Community Healthcare NHS Foundation Trust,5/31/2020,Rent,Millennium Centre,NHS PROPERTY SERVICES LTD,34261259,"34,263.90",156725100,H182511,
Department of Health,Bridgewater Community Healthcare NHS Foundation Trust,5/31/2020,Audit Fees: Internal,Finance,LIVERPOOL UNIVERSITY HOSPITALS NHS FOUNDATION TRUST,34261262,"33,390.00",GB 654910626,8610103140,
Department of Health,Bridgewater Community Healthcare NHS Foundation Trust,5/31/2020,Lease Rents,Dental - Estates,NHS PROPERTY SERVICES LTD,34261263,"292,767.70",156725100,NAVS05226,
Department of Health,Bridgewater Community Healthcare NHS Foundation Trust,5/31/2020,Rent,Millennium Centre,NHS PROPERTY SERVICES LTD,34261281,"34,263.90",156725100,H205567,
Department of Health,Bridgewater Community Healthcare NHS Foundation Trust,5/31/2020,Rent,Ince Clinic and Community Centre,NHS PROPERTY SERVICES LTD,34261288,"44,637.77",156725100,H209855,
Department of Health,Bridgewater Community Healthcare NHS Foundation Trust,5/31/2020,Rent,Millennium Centre,NHS PROPERTY SERVICES LTD,34261290,"34,263.90",156725100,H220153,
Department of Health,Bridgewater Community Healthcare NHS Foundation Trust,5/31/2020,Services Received - NHSTs,Minor Injuries Unit and Walk In Centre - St Helens,ST HELENS & KNOWSLEY HOSPITALS NHS TRUST,34261315,"26,731.45",654943996,16791792,
Department of Health,Bridgewater Community Healthcare NHS Foundation Trust,5/31/2020,Rent,Millennium Centre,NHS PROPERTY SERVICES LTD,34261325,"34,263.90",156725100,H275764,
Department of Health,Bridgewater Community Healthcare NHS Foundation Trust,5/31/2020,Training Expenses,INNOVATION & IMPROVEMENT TEAM,QUESTBACK LTD,34261347,"43,260.00",864178301,05419,
Department of Health,Bridgewater Community Healthcare NHS Foundation Trust,5/31/2020,Drugs,Medicines Management,NHS BUSINESS SERVICES AUTHORITY,34261348,"116,540.67",654 434 729,1000063467,
Department of Health,Bridgewater Community Healthcare NHS Foundation Trust,5/31/2020,Audit Fees: Internal,Finance,LIVERPOOL UNIVERSITY HOSPITALS NHS FOUNDATION TRUST,34261350,"33,390.00",GB 654910626,8610113510,
Department of Health,Bridgewater Community Healthcare NHS Foundation Trust,5/31/2020,Services Received - NHSTs,IT Systems and Management,ST HELENS & KNOWSLEY HOSPITALS NHS TRUST,34261356,"106,643.90",654943996,16795525,
Department of Health,Bridgewater Community Healthcare NHS Foundation Trust,5/31/2020,Agency Medical Consultant,Dermatology Service - Warrington,GEOMETRIC RESULTS INTERNATIONAL LTD,34261357,"37,606.80",GB 108 2470 36,2438041,
Department of Health,Bridgewater Community Healthcare NHS Foundation Trust,5/31/2020,Agency Medical Consultant,Paediatric Community and LAC Team - St Helens,GEOMETRIC RESULTS INTERNATIONAL LTD,34267721,"40,198.00",GB 108 2470 36,RFP177,
Department of Health,Bridgewater Community Healthcare NHS Foundation Trust,5/31/2020,Rent,Fingerpost Health Park,NHS PROPERTY SERVICES LTD,34282876,"50,127.15",156725100,48373145,
Department of Health,Bridgewater Community Healthcare NHS Foundation Trust,5/31/2020,Rent,Newton Community Hospital,NHS PROPERTY SERVICES LTD,34282879,"57,818.66",156725100,48408297,
Department of Health,Bridgewater Community Healthcare NHS Foundation Trust,5/31/2020,Rent,Woodview CDC,NHS PROPERTY SERVICES LTD,34282883,"58,890.24",156725100,48408432,
Department of Health,Bridgewater Community Healthcare NHS Foundation Trust,5/31/2020,Rent,Dewar Court,NHS PROPERTY SERVICES LTD,34282884,"98,103.90",156725100,48409775,
Department of Health,Bridgewater Community Healthcare NHS Foundation Trust,5/31/2020,Rent,Dental - Estates,NHS PROPERTY SERVICES LTD,34282885,"53,760.19",156725100,48502669,
Department of Health,Bridgewater Community Healthcare NHS Foundation Trust,5/31/2020,Rent,Oldham Estates,NHS PROPERTY SERVICES LTD,34282886,"87,605.94",156725100,00000001H25033,
Department of Health,Bridgewater Community Healthcare NHS Foundation Trust,5/31/2020,Rent,Fingerpost Health Park,NHS PROPERTY SERVICES LTD,34282887,"64,074.14",156725100,00000001H17644,
Department of Health,Bridgewater Community Healthcare NHS Foundation Trust,5/31/2020,Rent,Millennium Centre,NHS PROPERTY SERVICES LTD,34282888,"60,105.01",156725100,H52544,
Department of Health,Bridgewater Community Healthcare NHS Foundation Trust,5/31/2020,Rent,Penketh Health Centre,NHS PROPERTY SERVICES LTD,34282889,"54,078.69",156725100,H64242,
Department of Health,Bridgewater Community Healthcare NHS Foundation Trust,5/31/2020,Rent,Penketh Health Centre,NHS PROPERTY SERVICES LTD,34282890,"54,078.69",156725100,H74244,
Department of Health,Bridgewater Community Healthcare NHS Foundation Trust,5/31/2020,Lease Rents,Dental - Estates,NHS PROPERTY SERVICES LTD,34282911,"75,355.48",156725100,H287781,
Department of Health,Bridgewater Community Healthcare NHS Foundation Trust,5/31/2020,External Consultancy Fees,Computing,PHOENIX PARTNERSHIP (LEEDS) LTD,34282912,"82,920.73",721671841,11038,
Department of Health,Bridgewater Community Healthcare NHS Foundation Trust,5/31/2020,Services Received - NHSTs,Urgent Care Centre - Halton,ST HELENS & KNOWSLEY HOSPITALS NHS TRUST,34282914,"40,391.35",654943996,16795597,
Department of Health,Bridgewater Community Healthcare NHS Foundation Trust,5/31/2020,Rent,Millennium Centre,NHS PROPERTY SERVICES LTD,34301397,"143,831.51",156725100,H61446,
Department of Health,Bridgewater Community Healthcare NHS Foundation Trust,5/31/2020,Rent,Millennium Centre,NHS PROPERTY SERVICES LTD,34301400,"143,831.51",156725100,H73007,
Department of Health,Bridgewater Community Healthcare NHS Foundation Trust,5/31/2020,Rent,Millennium Centre,NHS PROPERTY SERVICES LTD,34301404,"109,567.61",156725100,H114941,
Department of Health,Bridgewater Community Healthcare NHS Foundation Trust,5/31/2020,Rent,Millennium Centre,NHS PROPERTY SERVICES LTD,34301408,"109,567.61",156725100,H160725,
Department of Health,Bridgewater Community Healthcare NHS Foundation Trust,5/31/2020,Rent,Millennium Centre,NHS PROPERTY SERVICES LTD,34301411,"121,315.08",156725100,H182108,
Department of Health,Bridgewater Community Healthcare NHS Foundation Trust,5/31/2020,Rent,Millennium Centre,NHS PROPERTY SERVICES LTD,34301416,"121,315.08",156725100,H204160,
Department of Health,Bridgewater Community Healthcare NHS Foundation Trust,5/31/2020,Rent,Millennium Centre,NHS PROPERTY SERVICES LTD,34301425,"121,315.08",156725100,H227393,
Department of Health,Bridgewater Community Healthcare NHS Foundation Trust,5/31/2020,Rent,Millennium Centre,NHS PROPERTY SERVICES LTD,34301427,"121,315.08",156725100,H285055,
Department of Health,Bridgewater Community Healthcare NHS Foundation Trust,5/31/2020,Rent,Dental - Estates,NHS PROPERTY SERVICES LTD,34301428,"156,408.84",156725100,H287675,
Department of Health,Bridgewater Community Healthcare NHS Foundation Trust,5/31/2020,Computer Software/License,Computing,INTERCITY MANAGED SERVICES LTD,34331425,"38,073.34",GB845064722,2020031412,
Department of Health,Bridgewater Community Healthcare NHS Foundation Trust,5/31/2020,Lease Rents,Woodview CDC,NHS PROPERTY SERVICES LTD,34362206,"49,303.18",156725100,H124152,
Department of Health,Bridgewater Community Healthcare NHS Foundation Trust,5/31/2020,Lease Rents,Bath Street,COMMUNITY HEALTH PARTNERSHIPS LTD,34362348,"46,353.84",GB782562113,0060141383,
Department of Health,Bridgewater Community Healthcare NHS Foundation Trust,5/31/2020,Lease Rents,Bath Street,COMMUNITY HEALTH PARTNERSHIPS LTD,34362350,"46,353.84",GB782562113,0060141386,
Department of Health,Bridgewater Community Healthcare NHS Foundation Trust,5/31/2020,Lease Rents,Bath Street,COMMUNITY HEALTH PARTNERSHIPS LTD,34362352,"46,353.84",GB782562113,0060141385,
Department of Health,Bridgewater Community Healthcare NHS Foundation Trust,5/31/2020,Lease Rents,Bath Street,COMMUNITY HEALTH PARTNERSHIPS LTD,34362355,"46,353.84",GB782562113,0060141384,
Department of Health,Bridgewater Community Healthcare NHS Foundation Trust,5/31/2020,Lease Rents,Bath Street,COMMUNITY HEALTH PARTNERSHIPS LTD,34362363,"62,138.84",GB782562113,0060145011,
Department of Health,Bridgewater Community Healthcare NHS Foundation Trust,5/31/2020,Lease Rents,Bath Street,COMMUNITY HEALTH PARTNERSHIPS LTD,34362369,"62,138.84",GB782562113,0060145012,
Department of Health,Bridgewater Community Healthcare NHS Foundation Trust,5/31/2020,Lease Rents,Bath Street,COMMUNITY HEALTH PARTNERSHIPS LTD,34362371,"62,138.84",GB782562113,0060145013,
Department of Health,Bridgewater Community Healthcare NHS Foundation Trust,5/31/2020,Rent,General Management,COMMUNITY HEALTH PARTNERSHIPS LTD,34362373,"62,138.84",GB782562113,0060145010,
Department of Health,Bridgewater Community Healthcare NHS Foundation Trust,5/31/2020,Continence Products,Continence Adult Halton,ESSITY UK LTD,34362401,"25,100.54",GB 600 4331 06,6401654444,
Department of Health,Bridgewater Community Healthcare NHS Foundation Trust,5/31/2020,Continence Products,Continence Adult - Warrington,ESSITY UK LTD,34362404,"42,417.13",GB 600 4331 06,6401654440,
Department of Health,Bridgewater Community Healthcare NHS Foundation Trust,5/31/2020,Computer Software/License,Computing,SOFTCAT PLC,34395981,"27,836.56",GB491848503,INV02579165,
Department of Health,Bridgewater Community Healthcare NHS Foundation Trust,5/31/2020,Lease Rents,Woodview CDC,NHS PROPERTY SERVICES LTD,34432840,"39,615.81",156725100,H124149,
Department of Health,Bridgewater Community Healthcare NHS Foundation Trust,5/31/2020,Lease Rents,Westbrook Medical Centre,NHS PROPERTY SERVICES LTD,34432850,"25,003.16",156725100,H128216,
Department of Health,Bridgewater Community Healthcare NHS Foundation Trust,5/31/2020,Lease Rents,Halton ILC,NHS PROPERTY SERVICES LTD,34432852,"33,588.08",156725100,H133667,
Department of Health,Bridgewater Community Healthcare NHS Foundation Trust,5/31/2020,Lease Rents,Bolton 0-19 Estates,NHS PROPERTY SERVICES LTD,34432854,"39,167.36",156725100,H133852,
Department of Health,Bridgewater Community Healthcare NHS Foundation Trust,5/31/2020,Lease Rents,Bridges Learning Centre,NHS PROPERTY SERVICES LTD,34432858,"30,646.82",156725100,H135017,
Department of Health,Bridgewater Community Healthcare NHS Foundation Trust,5/31/2020,Lease Rents,Penketh Health Centre,NHS PROPERTY SERVICES LTD,34432874,"40,523.00",156725100,H209891,
Department of Health,Bridgewater Community Healthcare NHS Foundation Trust,5/31/2020,Services Received - NHSTs,IT Systems and Management,ST HELENS & KNOWSLEY HOSPITALS NHS TRUST,34472727,"53,321.95",654943996,16796347,
Department of Health,Bridgewater Community Healthcare NHS Foundation Trust,5/31/2020,Lease Rents,Penketh Health Centre,NHS PROPERTY SERVICES LTD,34478497,"81,139.84",156725100,H124313,
Department of Health,Bridgewater Community Healthcare NHS Foundation Trust,5/31/2020,Lease Rents,Millennium Centre,NHS PROPERTY SERVICES LTD,34478498,"50,174.95",156725100,H131694,
Department of Health,Bridgewater Community Healthcare NHS Foundation Trust,5/31/2020,Lease Rents,Oldham Estates,NHS PROPERTY SERVICES LTD,34478523,"43,927.98",156725100,H255215,
Department of Health,Bridgewater Community Healthcare NHS Foundation Trust,5/31/2020,Lease Rents,Halton ILC,NHS PROPERTY SERVICES LTD,34478536,"25,434.87",156725100,H261063,
Department of Health,Bridgewater Community Healthcare NHS Foundation Trust,5/31/2020,Lease Rents,Dental - Estates,NHS PROPERTY SERVICES LTD,34478539,"30,000.33",156725100,H263908,
Department of Health,Bridgewater Community Healthcare NHS Foundation Trust,5/31/2020,Lease Rents,Oldham Estates,NHS PROPERTY SERVICES LTD,34478560,"29,775.41",156725100,H287603,
Department of Health,Bridgewater Community Healthcare NHS Foundation Trust,5/31/2020,Lease Rents,Oldham Estates,NHS PROPERTY SERVICES LTD,34478561,"42,321.91",156725100,H287600,
Department of Health,Bridgewater Community Healthcare NHS Foundation Trust,5/31/2020,Lease Rents,Widnes HCRC,COMMUNITY HEALTH PARTNERSHIPS LTD,34478565,"78,369.60",GB782562113,0060148557,
Department of Health,Bridgewater Community Healthcare NHS Foundation Trust,5/31/2020,Lease Rents,Widnes HCRC,COMMUNITY HEALTH PARTNERSHIPS LTD,34478566,"78,369.60",GB782562113,0060148555,
Department of Health,Bridgewater Community Healthcare NHS Foundation Trust,5/31/2020,Lease Rents,Bath Street,COMMUNITY HEALTH PARTNERSHIPS LTD,34478567,"47,184.40",GB782562113,0060148998,
Department of Health,Bridgewater Community Healthcare NHS Foundation Trust,5/31/2020,Lease Rents,Child Development Centre Orford,COMMUNITY HEALTH PARTNERSHIPS LTD,34478567,"49,821.07",GB782562113,0060148998,
Department of Health,Bridgewater Community Healthcare NHS Foundation Trust,5/31/2020,Lease Rents,Orford Park,COMMUNITY HEALTH PARTNERSHIPS LTD,34478567,"25,119.75",GB782562113,0060148998,
Department of Health,Bridgewater Community Healthcare NHS Foundation Trust,5/31/2020,Lease Rents,Bath Street,COMMUNITY HEALTH PARTNERSHIPS LTD,34478568,"47,184.40",GB782562113,0060148979,
Department of Health,Bridgewater Community Healthcare NHS Foundation Trust,5/31/2020,Lease Rents,Child Development Centre Orford,COMMUNITY HEALTH PARTNERSHIPS LTD,34478568,"49,821.07",GB782562113,0060148979,
Department of Health,Bridgewater Community Healthcare NHS Foundation Trust,5/31/2020,Lease Rents,Orford Park,COMMUNITY HEALTH PARTNERSHIPS LTD,34478568,"25,119.75",GB782562113,0060148979,
Department of Health,Bridgewater Community Healthcare NHS Foundation Trust,5/31/2020,Lease Rents,Widnes HCRC,COMMUNITY HEALTH PARTNERSHIPS LTD,34478570,"78,369.60",GB782562113,0060151036,
Department of Health,Bridgewater Community Healthcare NHS Foundation Trust,5/31/2020,Lease Rents,Bath Street,COMMUNITY HEALTH PARTNERSHIPS LTD,34478571,"47,184.40",GB782562113,0060151269,
Department of Health,Bridgewater Community Healthcare NHS Foundation Trust,5/31/2020,Lease Rents,Child Development Centre Orford,COMMUNITY HEALTH PARTNERSHIPS LTD,34478571,"49,821.07",GB782562113,0060151269,
Department of Health,Bridgewater Community Healthcare NHS Foundation Trust,5/31/2020,Lease Rents,Orford Park,COMMUNITY HEALTH PARTNERSHIPS LTD,34478571,"25,119.75",GB782562113,0060151269,
Department of Health,Bridgewater Community Healthcare NHS Foundation Trust,5/31/2020,Rent,Warrington Wolves,WARRINGTON FC LTD,34478573,"31,350.00",152685258,23317,
Department of Health,Bridgewater Community Healthcare NHS Foundation Trust,5/31/2020,SrvcsRecd-FoundationTrust,Continuing Professional Development/LDA,WARRINGTON & HALTON HOSPITALS NHS FOUNDATION TRUST,34503716,"40,322.00",654404741,15378606,
